fUSD/lending_fUSD_20260523
["ID","MTS","AMOUNT","RATE_DAILY","PERIOD"]
[422827626,1779479432000,-150.0,0.00013952,2]
[422827628,1779479432000,-436.603,0.00013952,2]
[422827627,1779479432000,-150.0,0.00013952,2]
[422827607,1779479432000,-624.58,0.00013698,2]
[422827630,1779479432000,-3634.0,0.00013952,2]
[422827631,1779479432000,-166.66,0.00013973,2]
[422827635,1779479432000,-166.66,0.0001411,2]
[422827632,1779479432000,-1431.03801841,0.0001399,2]
[422827638,1779479432000,-624.58,0.00014199,2]
[422827634,1779479432000,-376.37,0.00014012,2]
[422827641,1779479432000,-15572.74904601,0.0001425,2]
[422827642,1779479432000,-2208.62312674,0.00014259,2]
[422827640,1779479432000,-166.66,0.00014247,2]
[422827637,1779479432000,-2208.62312679,0.00014179,2]
[422827636,1779479432000,-150.0,0.00014133,2]
[422827644,1779479432000,-2400.0,0.000143,5]
[422827655,1779479432000,-200.0,0.0001445,2]
[422827643,1779479432000,-2000.0,0.00014279,2]
[422827633,1779479432000,-823.0,0.00014012,2]
[422827679,1779479433000,-68106.57330337,0.000146,2]
[422827680,1779479433000,-15810.61393542,0.000146,2]
[422827684,1779479433000,-977.52684859,0.000146,2]
[422827681,1779479433000,-71238.19037316,0.000146,2]
[422827683,1779479433000,-75799.99999999,0.000146,2]
[422827685,1779479433000,-760.0,0.000146,2]
[422827682,1779479433000,-159766.13556788,0.000146,2]
[422827692,1779479439000,-2107540.95997159,0.000146,2]
[422827699,1779479439000,-2307.20652952,0.00014722,2]
[422827695,1779479439000,-2208.62312674,0.0001466,2]
[422827697,1779479439000,-3886.68146495,0.000147,2]
[422827696,1779479439000,-2307.20652952,0.00014678,2]
[422827693,1779479439000,-6200.0,0.000146,5]
[422827691,1779479439000,-991.188,0.00014556,2]
[422827694,1779479439000,-2307.20652952,0.00014633,2]
[422827701,1779479439000,-1200.0,0.000148,5]
[422827704,1779479439000,-500.0,0.0001483,2]
[422827703,1779479439000,-500.0,0.0001483,2]
[422827700,1779479439000,-2208.62312674,0.0001474,2]
[422827702,1779479439000,-2208.62312674,0.0001482,2]
[422827698,1779479439000,-1200.0,0.000147,5]
[422827722,1779479440000,-18796.8217663,0.00014938,2]
[422827717,1779479440000,-2765.8652,0.000149,2]
[422827715,1779479440000,-666.0,0.00014899,2]
[422827714,1779479440000,-300.0,0.00014899,2]
[422827713,1779479440000,-300.0,0.00014899,2]
[422827712,1779479440000,-417.13114333,0.00014899,2]
[422827710,1779479440000,-162.0,0.0001488,2]
[422827709,1779479440000,-150.0,0.00014877,2]
[422827708,1779479440000,-784.06177,0.0001486,2]
[422827705,1779479440000,-500.0,0.0001483,2]
[422827711,1779479440000,-300.0,0.00014899,2]
[422827706,1779479440000,-784.06177,0.0001485,2]
[422827721,1779479440000,-11190.7623307,0.00014938,2]
[422827707,1779479440000,-784.06178,0.0001485,2]
[422827718,1779479440000,-1500000.0,0.000149,2]
[422827723,1779479440000,-6814.0,0.00014986,2]
[422827719,1779479440000,-1200.0,0.000149,5]
[422827720,1779479440000,-2208.62312674,0.000149,2]
[422827738,1779479440000,-54484.37050708,0.00015,2]
[422827736,1779479440000,-13468.13769172,0.00015,2]
[422827737,1779479440000,-1839.61224414,0.00015,2]
[422827726,1779479440000,-624.58,0.00014999,2]
[422827725,1779479440000,-151.0,0.00014997,2]
[422827728,1779479440000,-624.58,0.00014999,2]
[422827727,1779479440000,-624.58,0.00014999,2]
[422827716,1779479440000,-7781.89769056,0.000149,2]
[422827734,1779479440000,-666.0,0.00014999,2]
[422827735,1779479440000,-353933.02993917,0.00015,2]
[422827733,1779479440000,-300.0,0.00014999,2]
[422827732,1779479440000,-300.0,0.00014999,2]
[422827731,1779479440000,-300.0,0.00014999,2]
[422827730,1779479440000,-624.80507155,0.00014999,2]
[422827729,1779479440000,-624.58,0.00014999,2]
[422827724,1779479440000,-205.04725358,0.0001499,2]
[422827742,1779479442000,-577.62231273,0.00015,2]
[422827744,1779479442000,-1211.5065005,0.00015,2]
[422827745,1779479442000,-1172.96774003,0.00015,2]
[422827743,1779479442000,-8100.61258535,0.00015,2]
[422827741,1779479442000,-155.82,0.00011877,2]
[422827748,1779479442000,-750.97674804,0.00015,2]
[422827746,1779479442000,-873.39,0.00015,2]
[422827751,1779479442000,-2591.12097664,0.000147,2]
[422827747,1779479442000,-2464.33172014,0.00015,2]
[422827749,1779479442000,-75826.00000001,0.00015,2]
[422827752,1779479442000,-9413.1295173,0.00015,2]
[422827851,1779479443000,-1609.527029,0.00015,2]
[422827836,1779479443000,-469.16235222,0.00014767,2]
[422827834,1779479443000,-934.8,0.00013952,2]
[422827842,1779479443000,-1838.0441773,0.00014767,2]
[422827848,1779479443000,-722063.58812938,0.00015,2]
[422827846,1779479443000,-8087.26435728,0.00015,2]
[422827844,1779479443000,-137024.31137609,0.00015,2]
[422827853,1779479443000,-1912.79311433,0.00015,2]
[422827855,1779479443000,-5313.14332512,0.00015,2]
[422827865,1779479443000,-150.0,0.00015,2]
[422827869,1779479443000,-150.0,0.00015,2]
[422827867,1779479443000,-4440.37878077,0.00015,2]
[422827871,1779479443000,-10027.99059427,0.00015,2]
[422827862,1779479443000,-4436.63062496,0.00015,2]
[422828090,1779479446000,-1116.41,0.00015,2]
[422828089,1779479446000,-1518.88964042,0.00015,2]
[422828087,1779479446000,-863.70699222,0.000147,2]
[422828092,1779479446000,-150.0,0.00015,2]
[422828088,1779479446000,-2136.0425468,0.00015,2]
[422828093,1779479446000,-2456.98533362,0.00015,2]
[422828100,1779479446000,-8897.81680007,0.00015,2]
[422828091,1779479446000,-2752.69848656,0.00015,2]
[422828095,1779479446000,-11087.89217615,0.00015,2]
[422828096,1779479446000,-757.6,0.00015,2]
[422828097,1779479446000,-5581.40048938,0.00015,2]
[422828098,1779479446000,-379.0,0.00015,2]
[422828099,1779479446000,-7589.35614,0.00015,2]
[422828094,1779479446000,-3020.10640324,0.00015,2]
[422828101,1779479606000,800.0,0.000106,3]
[422828102,1779479608000,1700.0,0.000107,3]
[422828103,1779479610000,2500.0,0.000108,3]
[422828104,1779479612000,3400.0,0.000109,3]
[422828105,1779479769000,237.61553022,0.00011,3]
[422828125,1779480438000,500.0,0.000106,3]
[422828126,1779480440000,1100.0,0.000107,3]
[422828127,1779480442000,1700.0,0.000108,3]
[422828128,1779480444000,2300.0,0.000109,3]
[422828131,1779480622000,89.15191688,7.693e-05,2]
[422828130,1779480622000,102.92808312,7.693e-05,2]
[422828129,1779480622000,192.08,5.129e-05,2]
[422828135,1779480631000,-150.0,0.00010258,2]
[422828132,1779480631000,-192.08,0.00010257,2]
[422828133,1779480631000,-150.0,0.00010258,2]
[422828138,1779480631000,-143.48,0.00010258,2]
[422828136,1779480631000,-150.0,0.00010258,2]
[422828137,1779480631000,-150.0,0.00010258,2]
[422828134,1779480631000,-150.0,0.00010258,2]
[422828150,1779480632000,-150.0,0.00010637,2]
[422828151,1779480632000,-300.0,0.00010724,2]
[422828152,1779480632000,-300.0,0.00010724,2]
[422828153,1779480632000,-3962.743842,0.00010725,2]
[422828149,1779480632000,-200.0,0.00010603,2]
[422828148,1779480632000,-262.58,0.0001058,2]
[422828147,1779480632000,-250.0,0.00010577,2]
[422828146,1779480632000,-1200.0,0.00010576,2]
[422828145,1779480632000,-237.0,0.00010553,2]
[422828142,1779480632000,-4148.650008,0.00010302,2]
[422828143,1779480632000,-250.0,0.00010353,2]
[422828141,1779480632000,-269.129992,0.00010302,2]
[422828139,1779480632000,-6.52,0.00010258,2]
[422828140,1779480632000,-150.0,0.00010258,2]
[422828144,1779480632000,-150.0,0.00010447,2]
[422828154,1779480632000,-2000.0,0.0001078,2]
[422828159,1779480632000,-150.0,0.00011207,2]
[422828158,1779480632000,-157.535,0.00011184,2]
[422828155,1779480632000,-150.0,0.00010827,2]
[422828171,1779480632000,-459.2364,0.00011311,2]
[422828168,1779480632000,-417.44581292,0.0001131,2]
[422828166,1779480632000,-500.0,0.0001131,2]
[422828169,1779480632000,-500.0,0.0001131,2]
[422828170,1779480632000,-150.0,0.0001131,2]
[422828167,1779480632000,-405.30077751,0.0001131,2]
[422828172,1779480632000,-73343.27938825,0.00011311,2]
[422828161,1779480632000,-320.304,0.00011212,2]
[422828165,1779480632000,-361.02360755,0.0001131,2]
[422828160,1779480632000,-911.9719096,0.00011211,2]
[422828162,1779480632000,-250.0,0.00011283,2]
[422828163,1779480632000,-475.07176939,0.00011283,2]
[422828157,1779480632000,-2171.291,0.00011184,2]
[422828156,1779480632000,-150.0,0.00011017,2]
[422828164,1779480632000,-195.7224227,0.00011283,2]
[422828200,1779480641000,-500.0,0.0001131,2]
[422828201,1779480641000,-500.0,0.0001131,2]
[422828203,1779480641000,-500.0,0.0001131,2]
[422828204,1779480641000,-500.0,0.0001131,2]
[422828202,1779480641000,-500.0,0.0001131,2]
[422828208,1779480641000,-500.0,0.0001131,2]
[422828212,1779480641000,-500.0,0.0001131,2]
[422828205,1779480641000,-500.0,0.0001131,2]
[422828210,1779480641000,-500.0,0.0001131,2]
[422828215,1779480641000,-500.0,0.0001131,2]
[422828211,1779480641000,-500.0,0.0001131,2]
[422828213,1779480641000,-500.0,0.0001131,2]
[422828197,1779480641000,-500.0,0.0001131,2]
[422828206,1779480641000,-500.0,0.0001131,2]
[422828196,1779480641000,-500.0,0.0001131,2]
[422828209,1779480641000,-500.0,0.0001131,2]
[422828198,1779480641000,-500.0,0.0001131,2]
[422828194,1779480641000,-500.0,0.0001131,2]
[422828195,1779480641000,-500.0,0.0001131,2]
[422828193,1779480641000,-500.0,0.0001131,2]
[422828192,1779480641000,-500.0,0.0001131,2]
[422828190,1779480641000,-500.0,0.0001131,2]
[422828189,1779480641000,-500.0,0.0001131,2]
[422828191,1779480641000,-609.25590507,0.0001131,2]
[422828188,1779480641000,-500.0,0.0001131,2]
[422828187,1779480641000,-500.0,0.0001131,2]
[422828185,1779480641000,-136.24390472,0.0001131,2]
[422828186,1779480641000,-355.9202801,0.0001131,2]
[422828183,1779480641000,-500.0,0.0001131,2]
[422828184,1779480641000,-500.0,0.0001131,2]
[422828199,1779480641000,-500.0,0.0001131,2]
[422828218,1779480641000,-500.0,0.0001131,2]
[422828207,1779480641000,-500.0,0.0001131,2]
[422828217,1779480641000,-500.0,0.0001131,2]
[422828292,1779480641000,-4505.78829931,0.00011311,2]
[422828277,1779480641000,-325467.853754,0.00011311,2]
[422828289,1779480641000,-87150.86850928,0.00011311,2]
[422828280,1779480641000,-474.50808334,0.00011311,2]
[422828275,1779480641000,-500.0,0.0001131,2]
[422828286,1779480641000,-7589.9,0.00011311,2]
[422828283,1779480641000,-7590.06523278,0.00011311,2]
[422828273,1779480641000,-500.0,0.0001131,2]
[422828270,1779480641000,-500.0,0.0001131,2]
[422828268,1779480641000,-500.0,0.0001131,2]
[422828250,1779480641000,-500.0,0.0001131,2]
[422828266,1779480641000,-500.0,0.0001131,2]
[422828254,1779480641000,-500.0,0.0001131,2]
[422828247,1779480641000,-500.0,0.0001131,2]
[422828264,1779480641000,-500.0,0.0001131,2]
[422828252,1779480641000,-500.0,0.0001131,2]
[422828261,1779480641000,-500.0,0.0001131,2]
[422828214,1779480641000,-500.0,0.0001131,2]
[422828259,1779480641000,-500.0,0.0001131,2]
[422828230,1779480641000,-500.0,0.0001131,2]
[422828221,1779480641000,-500.0,0.0001131,2]
[422828223,1779480641000,-500.0,0.0001131,2]
[422828226,1779480641000,-500.0,0.0001131,2]
[422828228,1779480641000,-500.0,0.0001131,2]
[422828219,1779480641000,-500.0,0.0001131,2]
[422828235,1779480641000,-500.0,0.0001131,2]
[422828295,1779480641000,-36935.77745721,0.00011311,2]
[422828245,1779480641000,-500.0,0.0001131,2]
[422828257,1779480641000,-500.0,0.0001131,2]
[422828216,1779480641000,-500.0,0.0001131,2]
[422828242,1779480641000,-500.0,0.0001131,2]
[422828233,1779480641000,-500.0,0.0001131,2]
[422828237,1779480641000,-500.0,0.0001131,2]
[422828451,1779480643000,-761.86476757,0.00011311,2]
[422828450,1779480643000,-322.94797957,0.00011311,2]
[422828448,1779480643000,-7481.53330847,0.00011311,2]
[422828449,1779480643000,-6988.08220382,0.00011311,2]
[422828462,1779480646000,-21258.64638629,0.00011311,2]
[422828464,1779480646000,-1487.16263208,0.00011311,2]
[422828463,1779480646000,-57875.56990988,0.00011311,2]
[422828461,1779480646000,-9624.42654564,0.00011311,2]
[422828459,1779480646000,-16762.34934169,0.00011311,2]
[422828460,1779480646000,-1746.40614003,0.00011311,2]
[422828493,1779480662000,152.0,0.00010928,7]
[422828497,1779480707000,500.0,0.000109,3]
[422828498,1779480749000,230.62683816,0.00011,3]
[422828504,1779481441000,150.0,8.506e-05,2]
[422828505,1779481649000,900.0,0.000106,3]
[422828506,1779481651000,1900.0,0.000107,3]
[422828507,1779481653000,2800.0,0.000108,3]
[422828508,1779481655000,3800.0,0.000109,3]
[422828511,1779481820000,1454.936536,8.724e-05,2]
[422828510,1779481820000,46.37,8.724e-05,2]
[422828573,1779481832000,-235.0,9.354e-05,2]
[422828582,1779481832000,-438.37667117,9.463e-05,2]
[422828579,1779481832000,-150.0,9.424e-05,2]
[422828581,1779481832000,-89745.37,9.425e-05,2]
[422828584,1779481832000,-167.87,9.491e-05,2]
[422828583,1779481832000,-2000.0,9.464e-05,2]
[422828587,1779481832000,-1000.0,9.573e-05,2]
[422828591,1779481832000,-300.0,9.646e-05,2]
[422828589,1779481832000,-250.0,9.646e-05,2]
[422828575,1779481832000,-33247.65720469,9.415e-05,2]
[422828590,1779481832000,-500.0,9.646e-05,2]
[422828586,1779481832000,-255.57,9.511e-05,2]
[422828588,1779481832000,-500.0,9.646e-05,2]
[422828592,1779481832000,-155.76592265,9.646e-05,2]
[422828593,1779481832000,-500.0,9.646e-05,2]
[422828595,1779481832000,-3100.5,9.814e-05,2]
[422828585,1779481832000,-200.0,9.51e-05,2]
[422828562,1779481832000,-167.87,9.115e-05,2]
[422828567,1779481832000,-150.0,9.265e-05,2]
[422828564,1779481832000,-150.0,9.176e-05,2]
[422828594,1779481832000,-1852.42,9.761e-05,2]
[422828548,1779481832000,-150.0,8.998e-05,2]
[422828550,1779481832000,-1200.0,9.039e-05,2]
[422828552,1779481832000,-300.0,9.039e-05,2]
[422828542,1779481832000,-500.0,8.837e-05,2]
[422828538,1779481832000,-500.0,8.786e-05,2]
[422828536,1779481832000,-150.0,8.769e-05,2]
[422828577,1779481832000,-1000.0,9.424e-05,2]
[422828546,1779481832000,-250.0,8.91e-05,2]
[422828540,1779481832000,-250.0,8.803e-05,2]
[422828556,1779481832000,-6130.30144037,9.04e-05,2]
[422828554,1779481832000,-300.0,9.039e-05,2]
[422828560,1779481832000,-150.0,9.087e-05,2]
[422828558,1779481832000,-438.37667118,9.087e-05,2]
[422828569,1779481832000,-438.37667117,9.275e-05,2]
[422828571,1779481832000,-153.378,9.3e-05,2]
[422828544,1779481832000,-3199.97,8.889e-05,2]
[422828596,1779481832000,-167.87,9.867e-05,2]
[422828598,1779481832000,-1680.0,9.943e-05,2]
[422828638,1779481832000,-4000.0,0.00010529,2]
[422828632,1779481832000,-150.0,0.00010479,2]
[422828633,1779481832000,-150.0,0.00010479,2]
[422828634,1779481832000,-150.22826443,0.00010479,2]
[422828636,1779481832000,-150.0,0.000105,2]
[422828642,1779481832000,-500.0,0.00010546,2]
[422828643,1779481832000,-500.0,0.00010546,2]
[422828639,1779481832000,-150.0,0.00010542,2]
[422828641,1779481832000,-283.71054426,0.00010546,2]
[422828637,1779481832000,-150.0,0.00010521,2]
[422828640,1779481832000,-252.71652529,0.00010546,2]
[422828645,1779481832000,-500.0,0.00010546,2]
[422828644,1779481832000,-292.21206905,0.00010546,2]
[422828646,1779481832000,-500.0,0.00010546,2]
[422828648,1779481832000,-500.0,0.00010546,2]
[422828647,1779481832000,-159.25590507,0.00010546,2]
[422828649,1779481832000,-500.0,0.00010546,2]
[422828597,1779481832000,-221.27,9.874e-05,2]
[422828631,1779481832000,-150.0,0.00010479,2]
[422828620,1779481832000,-150.0,0.00010479,2]
[422828635,1779481832000,-150.0,0.00010479,2]
[422828626,1779481832000,-150.0,0.00010479,2]
[422828607,1779481832000,-167.87,0.00010243,2]
[422828599,1779481832000,-420.0,9.943e-05,2]
[422828600,1779481832000,-163.46,0.0001,2]
[422828609,1779481832000,-4000.0,0.00010278,2]
[422828624,1779481832000,-150.0,0.00010479,2]
[422828601,1779481832000,-1699.2,0.00010007,2]
[422828605,1779481832000,-500.0,0.00010029,2]
[422828615,1779481832000,-255.0,0.00010366,2]
[422828613,1779481832000,-159.74,0.00010313,2]
[422828603,1779481832000,-4000.0,0.00010027,2]
[422828616,1779481832000,-209.74357566,0.00010458,2]
[422828622,1779481832000,-150.0,0.00010479,2]
[422828628,1779481832000,-150.0,0.00010479,2]
[422828618,1779481832000,-500.0,0.00010479,2]
[422828627,1779481832000,-150.0,0.00010479,2]
[422828630,1779481832000,-150.0,0.00010479,2]
[422828611,1779481832000,-12694.02474169,0.000103,2]
[422828629,1779481832000,-150.0,0.00010479,2]
[422828682,1779481833000,-150.0,0.00010708,2]
[422828689,1779481833000,-150.0,0.00010771,2]
[422828690,1779481833000,-4000.0,0.00010779,2]
[422828686,1779481833000,-150.0,0.0001075,2]
[422828687,1779481833000,-500.0,0.00010753,2]
[422828679,1779481833000,-150.0,0.00010691,2]
[422828685,1779481833000,-150.0,0.00010729,2]
[422828675,1779481833000,-2000.0,0.00010647,2]
[422828677,1779481833000,-150.0,0.00010687,2]
[422828688,1779481833000,-150.0,0.00010771,2]
[422828684,1779481833000,-150.0,0.00010729,2]
[422828691,1779481833000,-150.0,0.00010791,2]
[422828707,1779481833000,-150.0,0.00010895,2]
[422828695,1779481833000,-150.0,0.00010797,2]
[422828694,1779481833000,-150.0,0.00010797,2]
[422828693,1779481833000,-808.060993,0.00010792,2]
[422828696,1779481833000,-3787.556955,0.0001081,2]
[422828697,1779481833000,-150.0,0.00010812,2]
[422828698,1779481833000,-150.0,0.00010812,2]
[422828699,1779481833000,-150.0,0.00010829,2]
[422828701,1779481833000,-150.0,0.00010854,2]
[422828700,1779481833000,-150.0,0.00010833,2]
[422828702,1779481833000,-182.4458,0.00010871,2]
[422828678,1779481833000,-150.0,0.00010691,2]
[422828692,1779481833000,-3029.50962,0.00010792,2]
[422828680,1779481833000,-164.35,0.00010695,2]
[422828658,1779481833000,-150.0,0.00010546,2]
[422828681,1779481833000,-255.57,0.000107,2]
[422828650,1779481833000,-500.0,0.00010546,2]
[422828653,1779481833000,-500.0,0.00010546,2]
[422828651,1779481833000,-194.51492937,0.00010546,2]
[422828652,1779481833000,-500.0,0.00010546,2]
[422828654,1779481833000,-150.0,0.00010546,2]
[422828655,1779481833000,-150.0,0.00010546,2]
[422828656,1779481833000,-150.0,0.00010546,2]
[422828657,1779481833000,-150.0,0.00010546,2]
[422828660,1779481833000,-581365.36317554,0.00010547,2]
[422828659,1779481833000,-150.0,0.00010546,2]
[422828661,1779481833000,-954.0,0.00010547,2]
[422828663,1779481833000,-258.7,0.00010558,2]
[422828662,1779481833000,-917680.63682446,0.00010547,2]
[422828664,1779481833000,-150.0,0.00010563,2]
[422828665,1779481833000,-150.0,0.00010563,2]
[422828666,1779481833000,-150.0,0.00010583,2]
[422828667,1779481833000,-150.0,0.00010585,2]
[422828670,1779481833000,-150.0,0.00010604,2]
[422828669,1779481833000,-150.0,0.00010596,2]
[422828671,1779481833000,-167.87,0.00010619,2]
[422828668,1779481833000,-150.0,0.00010585,2]
[422828673,1779481833000,-150.0,0.00010646,2]
[422828672,1779481833000,-150.0,0.00010625,2]
[422828674,1779481833000,-150.0,0.00010646,2]
[422828683,1779481833000,-150.0,0.00010712,2]
[422828676,1779481833000,-150.0,0.00010667,2]
[422828706,1779481833000,-444.395022,0.0001088,2]
[422828709,1779481833000,-150.0,0.00010903,2]
[422828703,1779481833000,-150.0,0.00010875,2]
[422828735,1779481833000,-150.0,0.00011062,2]
[422828739,1779481833000,-6247.25910713,0.00011099,2]
[422828742,1779481833000,-150.0,0.00011103,2]
[422828737,1779481833000,-3131.51114559,0.00011099,2]
[422828738,1779481833000,-3131.51114551,0.00011099,2]
[422828743,1779481833000,-73969.3708,0.00011112,2]
[422828741,1779481833000,-6247.25910713,0.00011099,2]
[422828744,1779481833000,-150.0,0.00011115,2]
[422828745,1779481833000,-150.0,0.00011115,2]
[422828746,1779481833000,-177.03911712,0.00011121,2]
[422828749,1779481833000,-150.0,0.00011124,2]
[422828753,1779481833000,-169.65393973,0.00011156,2]
[422828752,1779481833000,-170.28,0.00011145,2]
[422828747,1779481833000,-281.5619756,0.00011121,2]
[422828751,1779481833000,-150.0,0.00011145,2]
[422828756,1779481833000,-150.0,0.00011178,2]
[422828755,1779481833000,-1924.0,0.00011178,2]
[422828754,1779481833000,-150.0,0.00011166,2]
[422828750,1779481833000,-150.0,0.00011145,2]
[422828758,1779481833000,-209.74357565,0.00011198,2]
[422828757,1779481833000,-150.0,0.00011186,2]
[422828759,1779481833000,-150.0,0.00011207,2]
[422828761,1779481833000,-5990.5634,0.00011211,2]
[422828760,1779481833000,-151.0,0.00011209,2]
[422828704,1779481833000,-178.446804,0.00010878,2]
[422828740,1779481833000,-6247.25910713,0.00011099,2]
[422828736,1779481833000,-150.0,0.00011082,2]
[422828748,1779481833000,-929.15611974,0.00011121,2]
[422828733,1779481833000,-150.0,0.00011062,2]
[422828708,1779481833000,-150.0,0.00010895,2]
[422828734,1779481833000,-150.0,0.00011062,2]
[422828710,1779481833000,-150.0,0.00010903,2]
[422828711,1779481833000,-150.0,0.00010916,2]
[422828715,1779481833000,-150.0,0.00010945,2]
[422828713,1779481833000,-2351.0,0.00010937,2]
[422828714,1779481833000,-587.0,0.00010937,2]
[422828712,1779481833000,-150.0,0.00010937,2]
[422828720,1779481833000,-150.0,0.00010978,2]
[422828716,1779481833000,-150.0,0.00010958,2]
[422828718,1779481833000,-186.3,0.00010959,2]
[422828719,1779481833000,-150.0,0.00010959,2]
[422828717,1779481833000,-150.0,0.00010959,2]
[422828705,1779481833000,-1804.660254,0.0001088,2]
[422828722,1779481833000,-150.0,0.00010999,2]
[422828721,1779481833000,-150.0,0.00010978,2]
[422828732,1779481833000,-150.0,0.00011062,2]
[422828727,1779481833000,-150.0,0.0001102,2]
[422828730,1779481833000,-150.0,0.00011041,2]
[422828726,1779481833000,-2500.0,0.00011012,2]
[422828729,1779481833000,-4000.0,0.0001103,2]
[422828728,1779481833000,-500.0,0.00011027,2]
[422828724,1779481833000,-150.0,0.00011009,2]
[422828725,1779481833000,-150.0,0.00011009,2]
[422828723,1779481833000,-4171.6214,0.00011002,2]
[422828731,1779481833000,-150.0,0.00011062,2]
[422828764,1779481834000,-28623.12791975,0.00011212,2]
[422828763,1779481834000,-67320.18994333,0.00011212,2]
[422828762,1779481834000,-40364.53280232,0.00011212,2]
[422828767,1779481834000,-406.469926,0.00011212,2]
[422828765,1779481834000,-23521.29360945,0.00011212,2]
[422828766,1779481834000,-13552.48280885,0.00011212,2]
[422828784,1779481838000,-500.0,0.00010277,2]
[422828790,1779481838000,-75.78585853,0.00010277,2]
[422828789,1779481838000,-500.0,0.00010277,2]
[422828787,1779481838000,-500.0,0.00010277,2]
[422828786,1779481838000,-500.0,0.00010277,2]
[422828788,1779481838000,-500.0,0.00010277,2]
[422828785,1779481838000,-500.0,0.00010277,2]
[422828782,1779481838000,-174.46845433,0.00010277,2]
[422828775,1779481838000,-500.0,0.00010277,2]
[422828774,1779481838000,-474.10731056,0.00010277,2]
[422828780,1779481838000,-500.0,0.00010277,2]
[422828779,1779481838000,-498.01214422,0.00010277,2]
[422828777,1779481838000,-500.0,0.00010277,2]
[422828778,1779481838000,-1.98785578,0.00010277,2]
[422828776,1779481838000,-500.0,0.00010277,2]
[422828791,1779481838000,-424.21414147,0.00010277,2]
[422828781,1779481838000,-325.53154567,0.00010277,2]
[422828792,1779481838000,-126.26529704,0.00010277,2]
[422828783,1779481838000,-500.0,0.00010277,2]
[422828795,1779481838000,-500.0,0.00010277,2]
[422828810,1779481838000,-500.0,0.00010277,2]
[422828811,1779481838000,-471.22340058,0.00010277,2]
[422828802,1779481838000,-500.0,0.00010277,2]
[422828800,1779481838000,-460.27833618,0.00010277,2]
[422828807,1779481838000,-500.0,0.00010277,2]
[422828804,1779481838000,-500.0,0.00010277,2]
[422828806,1779481838000,-500.0,0.00010277,2]
[422828809,1779481838000,-500.0,0.00010277,2]
[422828796,1779481838000,-12.62166382,0.00010277,2]
[422828805,1779481838000,-500.0,0.00010277,2]
[422828803,1779481838000,-500.0,0.00010277,2]
[422828801,1779481838000,-500.0,0.00010277,2]
[422828799,1779481838000,-39.72166382,0.00010277,2]
[422828798,1779481838000,-500.0,0.00010277,2]
[422828797,1779481838000,-487.37833618,0.00010277,2]
[422828793,1779481838000,-373.73470296,0.00010277,2]
[422828794,1779481838000,-500.0,0.00010277,2]
[422828808,1779481838000,-500.0,0.00010277,2]
[422828834,1779481840000,-386.95993047,0.00010277,2]
[422828835,1779481840000,-500.0,0.00010277,2]
[422828831,1779481840000,-138.46281826,0.00010277,2]
[422828829,1779481840000,-28.77659942,0.00010277,2]
[422828833,1779481840000,-113.04006953,0.00010277,2]
[422828830,1779481840000,-361.53718174,0.00010277,2]
[422828832,1779481840000,-396.61043349,0.00010277,2]
[422828838,1779481840000,-500.0,0.00010277,2]
[422828837,1779481840000,-500.0,0.00010277,2]
[422828841,1779481840000,-500.0,0.00010277,2]
[422828836,1779481840000,-500.0,0.00010277,2]
[422828845,1779481840000,-793.14258678,0.00011212,2]